Cogmind - Beta 15 *** ADVENTURER MODE // 2025.10.13 @ 19:02:50 Player: Haiko Result: Self-destructed Performance ------------- Evolutions (1) 500 Regions Visited (4) 800 Robots Destroyed (36) 180 Value Destroyed (948) 948 Prototype IDs (3) 60 Alien Tech Used (0) 0 Bonus (576) 576 TOTAL SCORE: 3064 Bonus ------- Met Imprinter 300 Was Imprinted 300 Friendly Fire -24 Cogmind --------- Core Integrity 381/400 Matter 200/300 Energy 160/160 System Corruption 1% Temperature Cool (34) Movement Treading (170) Location -7/Zion Parts ------- > --- POWER (1) -------- Light Nuclear Core > --- PROPULSION (2) --- Armored Treads Armored Treads > --- UTILITY (4) ------ Heat Sink Medium Storage Unit Signal Interpreter Improved Terrain Scanner > --- WEAPON (2) ------- Assault Rifle Mining Laser > --- INVENTORY (10) --- High-capacity Storage Unit High-capacity Matter Pod (200) Trap Scanner Seismic Detector Improved Targeting Computer ECM Suite Heavy Assault Rifle Mini Grenade Launcher Datajack CR-A16's Pointy Stick Peak State ------------ > --- POWER ------------ Light Nuclear Core > --- PROPULSION ------- Armored Treads Armored Treads > --- UTILITY ---------- Heat Sink Medium Storage Unit Signal Interpreter Improved Terrain Scanner > --- WEAPON ----------- Assault Rifle RU-N14's Throwing Claymores > --- INVENTORY -------- High-capacity Storage Unit High-capacity Matter Pod Trap Scanner Seismic Detector ECM Suite Heavy Assault Rifle Mini Grenade Launcher Datajack Mining Laser CR-A16's Pointy Stick [Rating: 24] Favorites ----------- Power Light Nuclear Core Engine Ion Engine Power Core Light Nuclear Core Propulsion Armored Treads Treads Armored Treads Utility Heat Sink Device Heat Sink Storage Medium Storage Unit Processor Signal Interpreter Weapon Assault Rifle Energy Cannon Beam Cannon Ballistic Gun Assault Rifle Launcher Mini Grenade Launcher Special Weapon Mining Laser Special Melee Weapon Datajack Build | -11 -10 -9 -9 -7 ------- Run | Yrd Mat Mat Min Zio Slots Evolved 2 | . . 2 . . Power . | . . . . . Propulsion . | . . . . . Utility 2 | . . 2 . . Weapon . | . . . . . Parts Attached 30 | 7 11 5 4 3 Power 4 | 1 2 . 1 . Engine 3 | 1 2 . . . Core 1 | . . . 1 . Reactor . | . . . . . Propulsion 6 | 2 2 2 . . Treads 6 | 2 2 2 . . Leg . | . . . . . Wheel . | . . . . . Hover . | . . . . . Flight . | . . . . . Utility 11 | 2 4 2 1 2 Device 7 | 1 2 1 1 2 Storage 3 | 1 2 . . . Processor 1 | . . 1 . . Hackware . | . . . . . Protection . | . . . . . Artifact . | . . . . . Weapon 9 | 2 3 1 2 1 Energy Gun . | . . . . . Energy Cannon 1 | . 1 . . . Ballistic Gun 4 | 2 1 1 . . Ballistic Cannon . | . . . . . Launcher 1 | . . . 1 . Special Weapon 2 | . 1 . . 1 Impact Weapon . | . . . . . Slashing Weapon . | . . . . . Piercing Weapon . | . . . . . Special Melee Weapon 1 | . . . 1 . Unidentified Prototypes 1 | . . . . 1 Parts Lost 2 | . . . 2 . Power . | . . . . . Propulsion . | . . . . . Utility 1 | . . . 1 . Weapon 1 | . . . 1 . Highest Loss Streak 1 | . . . 1 . To Critical Strikes . | . . . . . Average Backups 8 | 3 7 7 8 9 Power . | . . . . . Propulsion . | . . . . . Utility 4 | . 2 5 4 5 Weapon 2 | 1 2 1 2 3 Tool/Special . | . . . . . Unused Backups 6 | 1 2 . . 3 Power . | . . . . . Propulsion . | . . . . . Utility 4 | 1 1 . . 2 Weapon 2 | . 1 . . 1 Tool/Special . | . . . . . Average Slot Usage (%) 99 | . 100 99 99 100 Engine 4 | . 14 11 1 . Core 7 | . . . 9 11 Treads 22 | . 28 22 22 22 Device 20 | . 14 21 21 22 Storage 11 | . 14 11 11 11 Processor 9 | . . 11 11 11 Energy Cannon 3 | . 5 10 2 . Ballistic Gun 15 | . 19 11 16 15 Special Weapon 2 | . 3 . . 3 Special Melee Weapon 1 | . . . 2 2 Peak Build Rating 24 | 9 9 15 19 24 Average Rating 15 | 5 8 12 17 18 On Entrance 10 | . 9 8 15 18 Naked Turns . | . . . . . Heaviest Build 23 | 11 21 23 23 22 Greatest Support 40 | 40 40 40 40 40 Greatest Overweight (x) . | . . . . . Average Overweight (x) . | . . . . . Largest Inventory Capacity 20 | 8 20 10 10 10 Average Capacity 9 | 7 8 10 10 10 Most Carried 10 | 6 9 9 10 10 Average Carried 8 | 3 7 7 8 9 Final Capacity 10 | 8 10 10 10 10 Final Carried 10 | 4 9 9 8 10 Class Distribution -------------------- 56% | Scavenger-Mutant 43% | Mutant Dominant Class ---------------- Mutant | -10/Materials Mutant | -9/Materials Scavenger-Mutant | -9/Mines Scavenger-Mutant | -7/Zion Resources | -11 -10 -9 -9 -7 ----------- Run | Yrd Mat Mat Min Zio Matter Collected 1027 | 258 301 317 131 20 Remotely . | . . . . . Salvage Created 1187 | 160 354 342 331 . Parts 72 | 15 17 22 18 . Haulers Intercepted . | . . . . . Recyclers Shooed 1 | . . 1 . . Parts Field Recycled . | . . . . . Retrieved Matter . | . . . . . Parts Self-Destructed . | . . . . . Prevented . | . . . . . Kills | -11 -10 -9 -9 -7 ------- Run | Yrd Mat Mat Min Zio Combat Hostiles Destroyed 26 | . 7 10 9 . Guns 11 | . 3 5 3 . Cannons 10 | . 4 5 1 . AOE 5 | . . . 5 . Classes Destroyed 7 | 3 2 2 . . Worker 2 | 1 1 . . . Tunneler 4 | 4 . . . . Recycler 2 | 1 . . 1 . Watcher 2 | . 2 . . . Swarmer 7 | . . 4 3 . Grunt 16 | . 7 3 6 . Sentry 3 | . . 3 . . Best Kill Streak 7 | 4 3 4 7 . Combat Bots Only 6 | . 3 4 6 . Max Kills in Single Turn 4 | 1 1 1 4 . Gunslinging . | . . . . . Exploded 3 | . . . 3 . Melee . | . . . . . Uniques/NPCs Destroyed . | . . . . . Combat | -11 -10 -9 -9 -7 -------- Run | Yrd Mat Mat Min Zio Hostile Shots Fired 118 | . 31 47 34 6 Missed 20 | . 4 8 8 . Hits 98 | . 27 39 26 6 Projectile 98 | . 27 39 26 6 Critical Strikes 1 | . 1 . . . Damage Taken 834 | . 266 266 252 50 Core 83 | . 64 19 . . Absorbed by Shields . | . . . . . Ignored by Resistances 265 | . 82 88 78 17 Regen/Repaired (Parts) 411 | . . . . 411 Core Remaining (%) 87 | 100 74 . . . Volleys Fired 119 | 20 37 25 16 21 Largest 2 | 2 2 2 2 1 Hottest 120 | 40 120 100 83 100 Shots Fired 198 | 40 67 45 25 21 Gun 116 | 40 39 20 17 . Cannon 47 | . 21 20 6 . Launcher 2 | . . . 2 . Special 33 | . 7 5 . 21 Kinetic 116 | 40 39 20 17 . Thermal 80 | . 28 25 6 21 Explosive 2 | . . . 2 . Electromagnetic . | . . . . . Robot Hit Streak 30 | 25 16 22 30 . Robot Miss Streak 3 | 1 2 3 1 . Penetration Max . | . . . . . Secondary Targets . | . . . . . Shots Hit Robots 129 | 33 49 30 16 1 Core Hits 57 | 9 20 13 15 . Critical Kills 1 | 1 . . . . Critical Parts Destroyed . | . . . . . Critical Strikes 1 | 1 . . . . Destroy 1 | 1 . . . . Melee Attacks 1 | . . . . 1 Impact . | . . . . . Slashing . | . . . . . Piercing . | . . . . . Sneak Attacks 1 | . . . . 1 Combat Hostiles . | . . . . . Follow-up Attacks . | . . . . . Damage Inflicted 1984 | 267 611 485 597 24 Guns 824 | 267 235 158 164 . Cannons 771 | . 350 315 106 . Explosions 327 | . . . 327 . Melee . | . . . . . Ramming 14 | . 2 12 . . Kinetic 824 | 267 235 158 164 . Thermal 819 | . 374 315 106 24 Explosive 327 | . . . 327 . Electromagnetic . | . . . . . Impact . | . . . . . Slashing . | . . . . . Piercing . | . . . . . Highest Corruption 1 | . 1 . . 1 Average Corruption 1 | . 1 . . 1 Corruption Purged . | . . . . . Corruption Blocked . | . . . . . Effects 6 | . 6 . . . Message Errors 1 | . 1 . . . Matter Fused 3 | . 3 . . . Misfires 1 | . 1 . . . Weapon Failures 1 | . 1 . . . Overload Shots . | . . . . . Overflow Damage 5 | . 5 . . . Projectiles 5 | . 5 . . . Explosions . | . . . . . Melee . | . . . . . Knockbacks . | . . . . . Impact . | . . . . . Kinetic . | . . . . . Secondary . | . . . . . Self-Inflicted Damage . | . . . . . Shots . | . . . . . Rammed 5 | . 3 2 . . Targets Rammed 5 | . 3 2 . . Kicked . | . . . . . Crushed . | . . . . . Highest Temperature 307 | . 307 3 12 14 Average Temperature 79 | . 89 3 5 14 Received Heat Transfer 487 | . 216 63 168 40 Effects 2 | . 2 . . . Energy Bleed 1 | . 1 . . . Short Circuit 1 | . 1 . . . Siege Activations . | . . . . . Martial Activations . | . . . . . Shielding Activations . | . . . . . Robots Disrupted . | . . . . . Combat Hostiles . | . . . . . Robots Corrupted . | . . . . . Combat Hostiles . | . . . . . Parts Fried . | . . . . . Impact Corruptions . | . . . . . Robots Melted . | . . . . . Combat Hostiles . | . . . . . Parts Melted 1 | . . 1 . . Heat Transferred 1728 | . 790 666 222 50 Parts Sabotaged . | . . . . . Parts Stolen . | . . . . . Parts Stripped . | . . . . . Power Chain Reactions . | . . . . . Alert | -11 -10 -9 -9 -7 ------- Run | Yrd Mat Mat Min Zio Maximum Alert Level . | . . . . . Low Security (%) 100 | 100 100 100 100 . Level 1 . | . . . . . Level 2 . | . . . . . Level 3 . | . . . . . Level 4 . | . . . . . Level 5 . | . . . . . High Security . | . . . . . Max Security . | . . . . . Peak Influence 152 | 10 87 121 152 . Initial 15 | . . . 15 . Average 29 | 1 17 28 63 . Influence Increases 828 | 30 248 294 256 . Destroy 0b10 Robot/C 520 | . 140 200 180 . Destroy 0b10 Robot/NC 50 | 30 15 . 5 . Destroy Leader 124 | . 44 50 30 . Successful Hack 12 | . 12 . . . Disable Machine 54 | . 36 9 9 . Destroy Structure 23 | . 1 5 17 . Lose Combat Pursuer 45 | . . 30 15 . Influence Decreases 828 | 30 248 247 292 11 Entered New Map 43 | . . . 32 11 Time Decay 757 | 30 240 247 240 . Lost Part 20 | . . . 20 . Purge Threat 8 | . 8 . . . Squads Dispatched 2 | . 1 1 . . Investigation 1 | . 1 . . . Extermination . | . . . . . Reinforcement 1 | . . 1 . . Assault . | . . . . . Garrison . | . . . . . Intercept . | . . . . . Searches Triggered . | . . . . . Construction Impeded . | . . . . . Haulers Reinforced . | . . . . . Active Scanning Responses . | . . . . . Cargo Convoy Interrupts . | . . . . . Stealth | -11 -10 -9 -9 -7 --------- Run | Yrd Mat Mat Min Zio Distress Signals 5 | . 1 4 . . Communications Jammed . | . . . . . Distress Signals . | . . . . . Times Spotted 51 | . 18 18 10 5 Peak Tracking Total 6 | . 3 6 6 5 Tactical Retreats 4 | . 1 2 1 . Traps | -11 -10 -9 -9 -7 ------- Run | Yrd Mat Mat Min Zio Traps Triggered 1 | . 1 . . . Indirectly . | . . . . . Trap Hack Attempts . | . . . . . Triggered . | . . . . . Disarmed . | . . . . . Reprogrammed . | . . . . . Reused . | . . . . . Traps Extracted . | . . . . . Installed . | . . . . . Triggered . | . . . . . Machines | -11 -10 -9 -9 -7 ---------- Run | Yrd Mat Mat Min Zio Machines Disabled 8 | . 4 1 1 2 Max in Single Turn 1 | . 1 1 1 1 Machines Repaired . | . . . . . Machines Dismantled . | . . . . . Machines Sabotaged . | . . . . . Overloaded Fab Kills . | . . . . . Hacking | -11 -10 -9 -9 -7 --------- Run | Yrd Mat Mat Min Zio Machines Accessed 7 | . 7 . . . Terminals 6 | . 6 . . . Fabricators . | . . . . . Repair Stations . | . . . . . Recycling Units 1 | . 1 . . . Scanalyzers . | . . . . . Garrison Access . | . . . . . Total Hacks 18 | . 18 . . . Successful 12 | . 12 . . . Failed 6 | . 6 . . . Catastrophic . | . . . . . Database Lockouts . | . . . . . Manual 8 | . 5 . . 3 Terminals 13 | . 13 . . . Fabricators . | . . . . . Repair Stations . | . . . . . Recycling Units 5 | . 5 . . . Scanalyzers . | . . . . . Garrison Access . | . . . . . Terminal Hacks 7 | . 7 . . . Prototype ID Bank 1 | . 1 . . . Level Access Points 1 | . 1 . . . Alert Level 1 | . 1 . . . Unreport Threat 1 | . 1 . . . Zone Layout 3 | . 3 . . . Fabricator Hacks . | . . . . . Repair Station Hacks . | . . . . . Recycling Unit Hacks 5 | . 5 . . . Process 1 | . 1 . . . Report Inventory 3 | . 3 . . . Retrieve Matter 1 | . 1 . . . Scanalyzer . | . . . . . Garrison Access Hacks . | . . . . . Unauthorized Hacks . | . . . . . Terminals . | . . . . . Fabricators . | . . . . . Repair Stations . | . . . . . Recycling Units . | . . . . . Scanalyzers . | . . . . . Garrison Access . | . . . . . Data Cores Recovered . | . . . . . Used . | . . . . . Hacking Detections 5 | . 5 . . . Full Trace Events 2 | . 2 . . . Feedback Events 1 | . 1 . . . Corruption 1 | . 1 . . . Feedback Blocked . | . . . . . Robot Schematics Acquired . | . . . . . Robots Built . | . . . . . Authchips . | . . . . . Time . | . . . . . Total Robot Build Rating . | . . . . . Part Schematics Acquired . | . . . . . Parts Built . | . . . . . Authchips . | . . . . . Time . | . . . . . Total Part Build Rating . | . . . . . Parts Repaired . | . . . . . Time . | . . . . . Parts Recycled . | . . . . . Recycled Matter 83 | . 83 . . . Retrieved Matter 83 | . 83 . . . Retrieved Components . | . . . . . Parts Scanalyzed . | . . . . . Part Schematics Acquired . | . . . . . Parts Damaged . | . . . . . Bothacking | -11 -10 -9 -9 -7 ------------ Run | Yrd Mat Mat Min Zio Used RIF Installer . | . . . . . Robots Hacked 1 | . . . . 1 Non-combat 1 | . . . . 1 Combat . | . . . . . Robot Hacks Applied 1 | . . . . 1 parse_system 1 | . . . . 1 Relay Couplers Released . | . . . . . Fabnet Peak Effective % . | . . . . . Robots Rewired . | . . . . . Allies Hacked . | . . . . . Hacks Repelled . | . . . . . Allies | -11 -10 -9 -9 -7 -------- Run | Yrd Mat Mat Min Zio Total Allies 7 | . . . 3 4 Largest Group 7 | . . . 3 7 Highest-Rated Group 191 | . . . 40 191 Highest-Rated Ally 40 | . . . 16 40 Total Orders 1 | . . . . 1 STAY 1 | . . . . 1 Ally Attacks 5 | . . . . 5 Total Damage 52 | . . . . 52 Kills . | . . . . . Allies Corrupted . | . . . . . Allies Melted . | . . . . . Intel | -11 -10 -9 -9 -7 ------- Run | Yrd Mat Mat Min Zio Active Infowar (turns) 5186 | 7 516 1034 469 3160 Sensors 1045 | . . 1033 12 . Terrain 3936 | 7 350 . 457 3122 Traps 13 | . . . . 13 Seismic 33 | . . . . 33 ECM 215 | . 166 23 . 26 Robot Analysis Total . | . . . . . Derelict Logs Recovered 2 | . . . . 2 Drone Launches . | . . . . . Drone Recoveries . | . . . . . Exploration | -11 -10 -9 -9 -7 ------------- Run | Yrd Mat Mat Min Zio Turns Passed 5763 | 160 905 1035 503 3160 Spaces Moved 2931 | 60 376 467 258 1770 Core 6 | 6 . . . . Treads 2925 | 54 376 467 258 1770 Legs . | . . . . . Wheels . | . . . . . Hover . | . . . . . Flight . | . . . . . Fastest Speed 50 | 50 160 160 170 170 Average Speed 168 | 149 160 169 170 170 Slowest Speed 170 | 160 160 170 170 170 Overloaded Moves . | . . . . . Propulsion Burnouts . | . . . . . Robots Hopped . | . . . . . Potential Cave-ins . | . . . . . Cave-ins Triggered . | . . . . . Exploration Rate (%) 47 | 5 59 29 57 87 Regions Visited 4 Branch Regions 2 Pre-discovered Areas . | . . . . . Known Exits Taken 3 | . 1 1 1 . Unknown Exits Taken 1 | 1 . . . . Scrap Searched 1 | . . . . 1 Spaces Dug 5 | . 2 3 . . Terrain Destroyed 25 | . 2 3 20 . Melee . | . . . . . Projectile 5 | . 2 3 . . AOE 20 | . . . 20 . Terrain Rammed . | . . . . . Walls Destroyed . | . . . . . Machines Disabled . | . . . . . Actions | -11 -10 -9 -9 -7 --------- Run | Yrd Mat Mat Min Zio Total 3500 | 98 600 652 296 1854 Wait 348 | 1 146 144 14 43 Move 2927 | 59 375 466 257 1770 Hop . | . . . . . Pick Up 26 | 10 9 1 1 5 Fast Attach 2 | 2 . . . . Attach 11 | 5 1 2 2 1 Detach . | . . . . . Swap 45 | . 20 10 5 10 Drop 16 | 1 9 2 1 3 Fire 119 | 20 37 25 16 21 Melee 1 | . . . . 1 Ram . | . . . . . Kick . | . . . . . Crush 5 | . 3 2 . . Escape Stasis . | . . . . . Rewire . | . . . . . Trap . | . . . . . Miscellaneous . | . . . . . Route ------- -11/Scrapyard -10/Materials (discovered 3 exits: *Mat x3) -9/Materials (discovered 2 exits: *Min / *Sto) -9/Mines (discovered 3 exits: *Mat x2 / *Zio) -7/Zion History --------- Turn | Location | Event 6 | -11/Scrapyard | Discovered new exit (range 15) 161 | -11/Scrapyard | Entered Materials 311 | -10/Materials | Build established: Mutant 721 | -10/Materials | Discovered new exit (range 18) 989 | -10/Materials | Identified exit to Materials 1066 | -10/Materials | Entered another Materials area 1066 | -9/Materials | Evolved 2 slots: Utility x2 2063 | -9/Materials | Discovered new exit (range 5) 2075 | -9/Materials | Discovered new exit (range 14) 2079 | -9/Materials | Identified exit to Storage 2099 | -9/Materials | Identified exit to Mines 2101 | -9/Materials | Entered Mines 2397 | -9/Mines | Discovered new exit (range 10) 2411 | -9/Mines | Identified exit to Materials 2439 | -9/Mines | Build established: Scavenger-Mutant 2469 | -9/Mines | Discovered exit to Materials (range 7) 2499 | -9/Mines | Assisted by bots powering up and referring to "LRC-V3" 2597 | -9/Mines | A Derelict revealed a hidden shortcut to a safe place 2599 | -9/Mines | Identified exit to Zion 2604 | -9/Mines | Entered Zion 2604 | -7/Zion | Accompanied by 3 allies 2771 | -7/Zion | Learned 4 Factory zone layouts 2793 | -7/Zion | Learned 4 Factory zone layouts 2827 | -7/Zion | Found CR-A16's Pointy Stick 3008 | -7/Zion | Visited the Megawrench Repair Shop 3008 | -7/Zion | Megawrench repaired 8 parts 4198 | -7/Zion | Found Prototype Special Weapon 4199 | -7/Zion | Identified RU-N14's Throwing Claymores 4675 | -7/Zion | Met Imprinter 4709 | -7/Zion | Imprinted 4711 | -7/Zion | Declared Zion's savior 5417 | -7/Zion | Build established: Mutant 5761 | -7/Zion | Attacked by Zionites 5764 | -7/Zion | Self-destructed Last Messages --------------- 05048_ P9-IOH(m) appears to be looking for something. 05052_ 41-YSJ(z) pokes at the Twisted Machinery. 05071_ P9-IOH(m) appears to be looking for something. 05146_ Sneak attack on P9-IOH(m). 05146_ Jacked P9-IOH(m)... >>parse_system Reading system data... 05150_ P9-IOH(m) rewires a component. 05190_ ZZ-ELI(z) searches inside the Twisted Machinery. 05290_ S2-OL5(z) fiddles with the Twisted Machinery. 05295_ S2-OL5(z) scatters some of the Twisted Machinery. 05355_ YK-QAD(z) plays with the Twisted Machinery. 05494_ ZP-EYI(z) rummages through the Twisted Machinery. 05589_ 35-SA0(z) plays with the Twisted Machinery. 05603_ ZZ-ELI(z) shifts around the Twisted Machinery. 05603_ 6M-CY1(z) toys with the Twisted Machinery. 05646_ 41-YSJ(z) plays with the Twisted Machinery. 05728_ Machine disabled. 05761_ PUBLIC SERVICE ANNOUNCEMENT: Zion is under attack! Defend our home! 05762_ *Clank destroyed. Map ----- +----------------------------------------------------+ | | | | | | | ?????????????????????????????????????????????????? | | ?????????????????????????????????????????????????? | | ?????????????????????????????????????????????????? | | ?????????????????????????????????????????????????? | | ?????????????????????????????????????????????????? | | ?????????????????????????????????????????????????? | | ?????????????????????????????????????????????????? | | ?????????????????????????????????????????????????? | | ?????????????????????????#???????????????????????? | | ?????????????????????#??????#????????????????????? | | ?????????????????????????????????????????????????? | | ???????????????????????#?????????????????????????? | | ????????????????????????????????#????????????????? | | ???????????????????#?????????#???????????????????? | | ??????????????#?#????#????#???#???#??????????????? | | ????????????????????????##?#?#???????????????????? | | ?????????????????#????#?#?????#??????????????????? | | ??????????#???????#?????#?#???#??#?#?????????????? | | ??????????#??????#????#???#?#??#?#?????#?????????? | | ???????????#???????#???#???#????#????#??##???????? | | ????????#??#???#??#??#############?????#?????????? | | ??????????????????????# #""#"#??##???##??????????? | | ???????????????#?#????# M@" "###??????#???#??????? | | ????????????#???#????## M "##??##??#?###???#???? | | ?????????#?#???#????#?# M m "#???####???#????????# | | ??????#?#??#???###??#?## ###?##??###?###?#??#?? | | ???????########"#??#### M ""##?##?##??##""#"?#??# | | ???#???#"#"#"""###??#"" #?####?#?##"""""##??? | | #???????#""""""""####""" ####??##?##"" ""#??? | | ????????#""" "#"#"""" #######"" """### | | ?##?????##" "##"" [ "#""#""" ""#""" | | ???#?#??#"" """" !% """"""" """"" | | ???????##"" "##" z * " """" "" | | ???????#""" ""#" """ | | ###????#""" """" """"" " | | ""##???#"" """ """"" "" | | #""#??###"" "#"" "" | | """#??##"#"" "" """" " | | X"#####"##"" """""""" | | """""""""#""" ""###"" """" | | """"""""""""" """#"" "" """# | | ""#"" ""##"" """ """" """ | | """""" """#"""""""""""" "" | | """"" """ """"""#""""#""" """ "" | | """#"#"" """"""""""""" """" "" | | #"####""" * | | #"#??##""" | +----------------------------------------------------+ Best States ------------- Heat Dissipation 38 Energy Generation 14 Energy Capacity 250 Matter Stores 300 Matter Capacity 300 Sight Range 16 Robot Scan Range 14 Terrain Scan Range 16 Terrain Scan Density 10 ECM Strength 1 Resistance: KI 20 Resistance: TH 20 Resistance: EX 20 Resistance: EM 20 Resistance: I 20 Resistance: S 20 Resistance: P 20 Evasion (%) 50 Recoil Reduction 2 Offensive Hacking 10 Item Schematics ----------------- None Robot Schematics ------------------ None Fabricated ------------ Nothing Repaired ---------- Nothing Alien Tech Used ----------------- None Achievements -------------- The More The Merrier Challenges ------------ None Game ------ Seed FissionHelicalStabilizer Manual? 0 Play Time 00:47:16 Cumulative 11.6 hours Start 2025.10.13 @ 18:14:50 End 2025.10.13 @ 19:02:50 Sessions 1 Manual Loads 0 Difficulty Adventurer Special Mode None Game No. 12 Rogue 0 Adventurer 12 Explorer 0 Win Type - Total 0 Types 0/0/0/0/0/0/0/0/0/0 Lore% 12 Gallery% 15 Achievement% 14 Wizard Run 0 Options --------- Layout 0 ASCII 0 Keyboard 0 Movement Arrows Keybinds 0 Fullscreen 1 Font 18/X11 Map View 38x25 Zoom Use 88% Tactical HUD 1 Map Filters NONE Filters NONE Steam 1 RUN: fb531176-ed0a-4ad7-b4a2-c6ad845e0153